Cogmind - Beta 11.1 @@@ ROGUE MODE // 2022.06.23 @ 05:07:59 Player: leiavoia Result: Destroyed by L-41 Fighter with Axe Performance ------------- Evolutions (3) 1500 Regions Visited (11) 2200 Robots Destroyed (182) 910 Value Destroyed (5674) 5674 Prototype IDs (216) 4320 Alien Tech Used (0) 0 Bonus (2530) 2530 TOTAL SCORE: 17134 Bonus ------- High Alert Combat Kills 448 Follower Combat Kills 385 Met Data Miner 300 Used Data Conduit 3000 Friendly Fire -1603 Cogmind --------- Core Integrity 0/700 Matter 125/300 Energy 396/500 System Corruption 2% Temperature Cool (0) Movement Treading (480) Ox4 Location -6/Proximity Caves Parts ------- > --- POWER (1) -------- F-cell Engine > --- PROPULSION (4) --- Medium Treads Armored Wheel > --- UTILITY (6) ------ Improved Cooling System Huge Storage Unit Improved Signal Interpreter Precision Matter Filter Improved Light Armor Plating > --- WEAPON (2) ------- Neutron Cannon Mini Assault Cannon > --- INVENTORY (25) --- Light Angular Momentum Engine F-cell Engine Improved Heat Sink Huge Storage Unit High-capacity Battery (250) High-capacity Matter Pod (48) Improved Sensor Array Improved Terrain Scanner Cooled Plasma Cannon Compact Ion Cannon Improved KE Penetrator Advanced Assault Cannon Missile Launcher Heavy Hammer Peak State ------------ > --- POWER ------------ F-cell Engine > --- PROPULSION ------- Improved Treads Advanced Treads Advanced Treads Cooled Aerolev Unit > --- UTILITY ---------- Improved Cooling System Huge Storage Unit Improved Sensor Array Hardened Light Armor Plating Hardened Medium Armor Plating Improved Light Armor Plating > --- WEAPON ----------- Compact Ion Cannon Improved KE Penetrator > --- INVENTORY -------- F-cell Engine F-cell Engine Improved Treads Armored Wheel Improved Cooling System Huge Storage Unit High-capacity Battery High-capacity Matter Pod Structural Scanner Improved Terrain Scanner Precision Matter Filter Heavy Armor Plating Hardened Medium Armor Plating Improved Light Armor Plating Cooled Plasma Cannon Compact Ion Cannon Neutron Cannon Advanced Assault Cannon Mini Assault Cannon Missile Launcher Missile Launcher Missile Launcher Precision Rocket Launcher Heavy Hammer [Rating: 58] Favorites ----------- Power Deuterium Engine Engine Deuterium Engine Power Core Light Neutrino Core Propulsion Improved Treads Treads Improved Treads Leg Aluminum Leg Wheel Wheel Hover Unit Cooled Aerolev Unit Utility Huge Storage Unit Device Improved Heat Sink Storage Huge Storage Unit Processor Improved Signal Interpreter Protection Hardened Medium Armor Plating Weapon Spread Laser Energy Gun Spread Laser Energy Cannon Cooled Plasma Cannon Ballistic Gun Enhanced Autogun Ballistic Cannon Advanced Assault Cannon Launcher Missile Launcher Impact Weapon Heavy Hammer Build | -11 -10 -10 -9 -9 -8 -8 -7 -7 -7 -7 -6 ------- Run | Scr Mat Min Mat Min Mat Sto Fac Low Low Dat Pro Slots Evolved 6 | . . . 2 . 2 . 2 . . . . Power . | . . . . . . . . . . . . Propulsion 2 | . . . 1 . . . 1 . . . . Utility 4 | . . . 1 . 2 . 1 . . . . Weapon . | . . . . . . . . . . . . Parts Attached 167 | 1 14 4 21 5 17 18 40 5 1 11 30 Power 13 | . 1 . 2 . 1 3 4 . . . 2 Engine 12 | . 1 . 2 . 1 3 3 . . . 2 Core 1 | . . . . . . . 1 . . . . Reactor . | . . . . . . . . . . . . Propulsion 31 | . 5 1 9 2 3 2 5 1 . . 3 Treads 15 | . . . 5 . 3 2 3 1 . . 1 Leg 6 | . 2 1 2 . . . . . . . 1 Wheel 9 | . 3 . 2 2 . . 1 . . . 1 Hover 1 | . . . . . . . 1 . . . . Flight . | . . . . . . . . . . . . Utility 63 | 1 6 3 3 2 9 4 14 3 1 4 13 Device 33 | 1 2 2 1 1 4 2 7 2 . 2 9 Storage 6 | . 4 1 1 . . . . . . . . Processor 2 | . . . . . 1 . 1 . . . . Hackware . | . . . . . . . . . . . . Protection 22 | . . . 1 1 4 2 6 1 1 2 4 Artifact . | . . . . . . . . . . . . Weapon 60 | . 2 . 7 1 4 9 17 1 . 7 12 Energy Gun 7 | . 2 . 2 . 2 1 . . . . . Energy Cannon 20 | . . . 1 . . 2 7 1 . 4 5 Ballistic Gun 2 | . . . . . . . 2 . . . . Ballistic Cannon 12 | . . . 3 1 2 3 2 . . . 1 Launcher 17 | . . . . . . 3 5 . . 3 6 Special Weapon . | . . . . . . . . . . . . Impact Weapon 2 | . . . 1 . . . 1 . . . . Slashing Weapon . | . . . . . . . . . . . . Piercing Weapon . | . . . . . . . . . . . . Special Melee Weapon . | . . . . . . . . . . . . Unidentified Prototypes 15 | . . . 2 . 1 4 8 . . . . Parts Lost 21 | . . 2 1 . 1 . 1 1 . 3 12 Power 2 | . . . 1 . . . . . . . 1 Propulsion 6 | . . 1 . . . . . 1 . . 4 Utility 9 | . . 1 . . . . 1 . . 2 5 Weapon 4 | . . . . . 1 . . . . 1 2 Highest Loss Streak 5 | . . 1 1 . 1 . 1 1 . 3 5 To Critical Strikes . | . . . . . . . . . . . . Average Slot Usage (%) 97 | . 100 99 100 100 98 99 99 91 92 86 87 Engine 9 | . 14 14 11 11 8 8 7 7 7 7 7 Treads 17 | . . . 17 21 20 27 29 14 15 15 10 Leg 2 | . 12 11 4 . . . . . . . 3 Wheel 7 | . 15 16 11 11 6 . . 7 7 7 6 Device 17 | . 14 14 15 11 14 17 24 22 23 17 20 Storage 9 | . 14 14 11 11 9 9 7 7 7 7 7 Processor 1 | . . . . . 1 . . 7 7 7 7 Protection 9 | . . . 6 11 20 17 11 7 7 10 7 Energy Gun 7 | . 28 28 17 . 2 2 . . . . . Energy Cannon 6 | . . . . 11 3 8 6 15 15 8 12 Ballistic Cannon 4 | . . . 4 11 12 6 1 . . . . Naked Turns . | . . . . . . . . . . . . Heaviest Build 131 | 15 90 92 101 106 115 123 128 125 121 131 119 Greatest Support 89 | 20 20 20 12 43 68 67 89 28 28 28 28 Greatest Overweight (x) 10 | . 8 9 9 10 5 1 4 4 4 4 9 Average Overweight (x) 4 | . 1 7 8 7 2 1 1 4 4 3 3 Largest Inventory Capacity 25 | 8 25 25 25 25 25 25 25 25 25 25 25 Average Capacity 24 | 8 15 24 25 25 25 25 25 25 25 25 25 Most Carried 25 | 7 20 22 25 25 25 25 25 25 25 25 24 Average Carried 23 | 6 14 21 24 25 24 24 24 24 24 23 20 Final Capacity 25 | 8 20 25 25 25 25 25 25 25 25 25 25 Final Carried 25 | 7 20 22 25 25 25 25 25 25 25 22 14 Class Distribution -------------------- 68% | Mutant 14% | Skirmisher 9% | Scavenger-Mutant 7% | Commander-Mutant Dominant Class ---------------- Mutant | -10/Materials Scavenger-Mutant | -10/Mines Mutant | -9/Materials Mutant | -9/Mines Mutant | -8/Materials Mutant | -8/Storage Mutant | -7/Factory Skirmisher | -7/Lower Caves Mutant | -7/Lower Caves Mutant | -7/Data Miner Skirmisher | -6/Proximity Caves Resources | -11 -10 -10 -9 -9 -8 -8 -7 -7 -7 -7 -6 ----------- Run | Scr Mat Min Mat Min Mat Sto Fac Low Low Dat Pro Matter Collected 3741 | 210 140 40 440 289 405 663 546 293 117 28 570 Remotely . | . . . . . . . . . . . . Salvage Created 5696 | 67 508 225 822 224 471 944 1421 231 37 70 676 Parts 320 | 2 43 15 54 24 29 51 73 9 1 1 18 Haulers Intercepted 14 | . 2 . 5 . 1 5 1 . . . . Recyclers Shooed 7 | . 1 . 1 . 2 . 3 . . . . Parts Field Recycled . | . . . . . . . . . . . . Retrieved Matter . | . . . . . . . . . . . . Parts Self-Destructed 29 | . . . . . . . . 6 5 . 18 Prevented . | . . . . . . . . . . . . Kills | -11 -10 -10 -9 -9 -8 -8 -7 -7 -7 -7 -6 ------- Run | Scr Mat Min Mat Min Mat Sto Fac Low Low Dat Pro Combat Hostiles Destroyed 124 | . 7 7 21 6 14 13 29 5 1 4 17 Melee 1 | . . . . . . . 1 . . . . Guns 34 | . 7 7 16 . 3 1 . . . . . Cannons 56 | . . . 5 5 11 12 9 5 1 . 8 AOE 31 | . . . . . . . 18 . . 4 9 Classes Destroyed 17 | 2 6 . 2 1 1 1 4 . . . . Worker 8 | . 2 1 1 1 . 1 2 . . . . Builder 6 | . 2 . . 2 . . 2 . . . . Tunneler 8 | 1 2 . . 3 . . 2 . . . . Hauler 14 | . 2 . 5 . 1 5 1 . . . . Recycler 9 | 1 1 . 1 . 1 1 4 . . . . Operator 1 | . . . . . 1 . . . . . . Drone 1 | . . . . . . 1 . . . . . Watcher 9 | . 1 . 3 . 1 1 3 . . . . Swarmer 31 | . 3 3 9 3 8 1 . . . . 4 Grunt 45 | . 4 4 7 2 4 4 12 . . . 8 Brawler 3 | . . . 1 . . . 1 . . . 1 Duelist 4 | . . . . 1 . . . . . . 3 Protector 4 | . . . . . . . 4 . . . . Sentry 18 | . . . 4 . 2 9 2 . . . 1 Specialist 3 | . . . . . . . 3 . . . . Hunter 4 | . . . . . . . 3 . 1 . . Programmer 5 | . . . . . . . 4 1 . . . Enhanced Grunt 4 | . . . . . . . . . . 4 . Thug 4 | . . . . . . . . 4 . . . Best Kill Streak 15 | 2 3 5 7 4 6 3 15 4 1 4 6 Combat Bots Only 11 | . 3 5 4 2 4 2 11 4 1 4 6 Max Kills in Single Turn 9 | 1 1 1 2 1 1 1 9 1 1 2 2 Gunslinging . | . . . . . . . . . . . . Exploded 8 | . . . . . . . 8 . . 2 2 Melee 1 | . . . . . . . 1 . . . . Uniques/NPCs Destroyed 2 | . . 1 . . . . . . . 1 . YI-UF0 (-10/Mines) Data Miner (-7/Data Miner) Combat | -11 -10 -10 -9 -9 -8 -8 -7 -7 -7 -7 -6 -------- Run | Scr Mat Min Mat Min Mat Sto Fac Low Low Dat Pro Damage Taken 6426 | . 158 159 494 159 379 531 1348 437 72 757 1932 Core 909 | . 6 16 44 28 58 57 101 98 22 . 479 Absorbed by Shields 146 | . . . . . . . . . . 35 111 Regen/Repaired (Parts) 1176 | . . . 853 . 154 169 . . . . . Core Remaining (%) 88 | 100 . 91 . 82 . 79 . . . . . Volleys Fired 417 | 9 31 22 62 31 42 66 75 24 4 7 44 Largest 2 | 2 2 2 2 2 2 2 2 2 2 2 2 Hottest 195 | 90 130 130 130 116 133 144 153 195 195 105 180 Shots Fired 767 | 18 62 44 122 62 84 115 128 38 7 13 74 Gun 269 | 18 62 44 82 . 19 7 37 . . . . Cannon 447 | . . . 40 62 65 104 75 38 7 1 55 Launcher 51 | . . . . . . 4 16 . . 12 19 Special . | . . . . . . . . . . . . Kinetic 220 | . . . 38 31 46 48 48 . . . 9 Thermal 468 | 9 43 44 84 31 38 63 64 38 7 1 46 Explosive 51 | . . . . . . 4 16 . . 12 19 Electromagnetic 28 | 9 19 . . . . . . . . . . Robot Hit Streak 23 | 4 9 13 11 11 7 10 17 23 2 7 12 Robot Miss Streak 7 | 2 6 7 7 5 4 3 2 2 1 1 2 Penetration Max 1 | . . . . . . . 1 . . . . Secondary Targets 1 | . 1 . . . . . . . . . . Max Gunslinging Chain 1 | . 1 . . . . . . . . . . Shots Hit Robots 521 | 11 44 37 100 34 60 67 81 25 3 11 48 Core Hits 396 | 2 38 46 95 13 33 25 75 8 1 20 40 Critical Kills 3 | . . . . 1 . . 1 . . . 1 Critical Parts Destroyed 2 | . . . . . . . 2 . . . . Critical Strikes 15 | 1 2 . 2 2 2 2 3 . . . 1 Burn 3 | 1 2 . . . . . . . . . . Meltdown 3 | . . . . 1 . . 1 . . . 1 Destroy 2 | . . . . . . . 2 . . . . Blast 7 | . . . 2 1 2 2 . . . . . Melee Attacks 1 | . . . 1 . . . . . . . . Impact 1 | . . . 1 . . . . . . . . Slashing . | . . . . . . . . . . . . Piercing . | . . . . . . . . . . . . Sneak Attacks . | . . . . . . . . . . . . Combat Hostiles . | . . . . . . . . . . . . Follow-up Attacks . | . . . . . . . . . . . . Damage Inflicted 18066 | 205 591 514 1539 916 1177 2046 4995 982 179 2092 2830 Guns 2858 | 138 521 514 889 . 165 88 543 . . . . Cannons 8394 | . . . 650 916 1004 1884 1482 982 179 68 1229 Explosions 6734 | 67 70 . . . . 64 2908 . . 2024 1601 Melee . | . . . . . . . . . . . . Ramming 80 | . . . . . 8 10 62 . . . . Kinetic 3668 | . . . 628 500 664 886 782 . . . 208 Thermal 7621 | 116 376 514 911 416 505 1086 1447 982 179 68 1021 Explosive 6393 | . . . . . . 64 2704 . . 2024 1601 Electromagnetic 304 | 89 215 . . . . . . . . . . Impact . | . . . . . . . . . . . . Slashing . | . . . . . . . . . . . . Piercing . | . . . . . . . . . . . . Highest Corruption 2 | . . . . . . . 2 2 2 2 2 Average Corruption 1 | . . . . . . . 1 2 2 2 2 Corruption Purged . | . . . . . . . . . . . . Corruption Blocked . | . . . . . . . . . . . . Effects 44 | . . . . . . . 9 18 10 1 6 Message Errors 8 | . . . . . . . 1 3 2 . 2 Matter Fused 11 | . . . . . . . 3 6 1 . 1 Heat Flow Errors 6 | . . . . . . . 1 3 2 . . Energy Discharges 6 | . . . . . . . 1 2 2 . 1 Parts Rejected 1 | . . . . . . . . . . . 1 Data Loss (minor) 5 | . . . . . . . 2 2 . 1 . Data Loss (major) 5 | . . . . . . . 1 1 2 . 1 Misfires 2 | . . . . . . . . 1 1 . . Overload Shots 12 | . . . . . . 1 5 1 2 1 2 Overflow Damage 430 | . 6 . . 20 27 39 155 13 . 50 120 Projectiles 142 | . . . . 20 24 39 5 13 . . 41 Explosions 281 | . 6 . . . . . 146 . . 50 79 Melee 7 | . . . . . 3 . 4 . . . . Knockbacks 18 | . . . . 3 8 2 3 . . . 2 Impact . | . . . . . . . . . . . . Kinetic 17 | . . . . 3 7 2 3 . . . 2 Secondary 1 | . . . . . 1 . . . . . . Self-Inflicted Damage 90 | . 13 . . . . 18 16 . . . 43 Shots 7 | . 1 . . . . 1 1 . . . 4 Rammed 7 | . . . . . 1 2 4 . . . . Targets Rammed 10 | . . . . . 1 2 7 . . . . Kicked . | . . . . . . . . . . . . Crushed 3 | . . . . . . . 3 . . . . Highest Temperature 330 | 270 201 201 180 18 270 75 162 255 232 54 330 Average Temperature 61 | 136 57 70 44 9 70 21 39 100 86 28 97 Received Heat Transfer 1896 | . 63 66 153 66 99 198 414 216 . . 621 Effects 4 | 1 . . . . . . . . . . 3 Energy Bleed 1 | 1 . . . . . . . . . . . Interference 2 | . . . . . . . . . . . 2 Short Circuit 1 | . . . . . . . . . . . 1 Siege Activations . | . . . . . . . . . . . . Robots Corrupted . | . . . . . . . . . . . . Combat Hostiles . | . . . . . . . . . . . . Parts Fried 1 | . . . . . 1 . . . . . . Impact Corruptions 2 | . . . . . 1 . 1 . . . . Robots Melted 3 | . . . . 1 . . 1 . . . 1 Combat Hostiles 3 | . . . . 1 . . 1 . . . 1 Parts Melted 14 | . 1 . 1 1 2 3 5 . . 1 . Heat Transferred 9658 | 322 828 625 1157 703 760 1609 1821 730 160 80 863 Parts Sabotaged . | . . . . . . . . . . . . Parts Stolen . | . . . . . . . . . . . . Parts Stripped . | . . . . . . . . . . . . Power Chain Reactions 2 | 1 1 . . . . . . . . . . Missiles Intercepted . | . . . . . . . . . . . . Alert | -11 -10 -10 -9 -9 -8 -8 -7 -7 -7 -7 -6 ------- Run | Scr Mat Min Mat Min Mat Sto Fac Low Low Dat Pro Peak Influence 913 | 10 128 170 251 147 290 561 913 . . . . Initial 220 | . 6 . . 72 . 68 220 . . . . Average 198 | 6 55 32 100 60 156 294 520 . . . . Maximum Alert Level 3 | . . . 1 . 1 2 3 . . . . Low Security (%) 64 | 100 100 100 94 100 56 31 . . . . . Level 1 20 | . . . 5 . 43 42 43 . . . . Level 2 11 | . . . . . . 26 34 . . . . Level 3 4 | . . . . . . . 22 . . . . Level 4 . | . . . . . . . . . . . . Level 5 . | . . . . . . . . . . . . High Security . | . . . . . . . . . . . . Max Security . | . . . . . . . . . . . . Squads Dispatched 21 | . 1 . 2 1 3 3 10 . . . 1 Investigation 5 | . 1 . . 1 . 2 1 . . . . Extermination 1 | . . . . . . . 1 . . . . Reinforcement 12 | . . . 2 . 3 1 6 . . . . Assault 2 | . . . . . . . 1 . . . 1 Garrison 1 | . . . . . . . 1 . . . . Intercept . | . . . . . . . . . . . . Searches Triggered . | . . . . . . . . . . . . Construction Impeded 1 | . . . . . . . 1 . . . . Haulers Reinforced 1 | . . . . . . . 1 . . . . Active Scanning Responses . | . . . . . . . . . . . . Cargo Convoy Interrupts 1 | . . . . . . . 1 . . . . Stealth | -11 -10 -10 -9 -9 -8 -8 -7 -7 -7 -7 -6 --------- Run | Scr Mat Min Mat Min Mat Sto Fac Low Low Dat Pro Distress Signals 12 | . . . 2 . 2 4 4 . . . . Communications Jammed . | . . . . . . . . . . . . Distress Signals . | . . . . . . . . . . . . Times Spotted 194 | . 13 7 34 8 24 28 48 6 2 4 20 Peak Tracking Total 12 | . 3 3 5 4 4 8 12 7 1 4 7 Tactical Retreats 12 | . . . 2 1 4 4 1 . . . . Traps | -11 -10 -10 -9 -9 -8 -8 -7 -7 -7 -7 -6 ------- Run | Scr Mat Min Mat Min Mat Sto Fac Low Low Dat Pro Traps Triggered 1 | . 1 . . . . . . . . . . Indirectly . | . . . . . . . . . . . . Trap Hack Attempts . | . . . . . . . . . . . . Triggered . | . . . . . . . . . . . . Disarmed . | . . . . . . . . . . . . Reprogrammed . | . . . . . . . . . . . . Reused . | . . . . . . . . . . . . Traps Extracted . | . . . . . . . . . . . . Installed . | . . . . . . . . . . . . Triggered 4 | . . . . . . . . 2 2 . . Machines | -11 -10 -10 -9 -9 -8 -8 -7 -7 -7 -7 -6 ---------- Run | Scr Mat Min Mat Min Mat Sto Fac Low Low Dat Pro Machines Disabled 26 | . . . 1 1 1 6 16 . . . 1 Max in Single Turn 8 | . . . 1 1 1 1 8 . . . 1 Garrison Access 2 | . . . . . . . 2 . . . . Machines Sabotaged . | . . . . . . . . . . . . Garrisons Compromised . | . . . . . . . . . . . . Overloaded Fab Kills . | . . . . . . . . . . . . Hacking | -11 -10 -10 -9 -9 -8 -8 -7 -7 -7 -7 -6 --------- Run | Scr Mat Min Mat Min Mat Sto Fac Low Low Dat Pro Machines Accessed 42 | . 9 . 5 2 4 10 7 1 . 4 . Terminals 23 | . 7 . 2 1 3 7 3 . . . . Fabricators 2 | . . . . . . . 2 . . . . Repair Stations 3 | . . . 1 . 1 1 . . . . . Recycling Units 5 | . 2 . 1 . . 2 . . . . . Scanalyzers 1 | . . . 1 . . . . . . . . Garrison Access 2 | . . . . . . . 2 . . . . Total Hacks 151 | . 31 . 13 9 21 31 17 1 . 28 . Successful 92 | . 14 . 8 6 10 18 7 1 . 28 . Failed 58 | . 16 . 5 3 11 13 10 . . . . Catastrophic 11 | . 2 . . . . 5 4 . . . . Database Lockouts 1 | . 1 . . . . . . . . . . Manual 55 | . 19 . 3 8 7 14 4 . . . . Terminals 79 | . 28 . 5 8 11 19 8 . . . . Fabricators 5 | . . . . . . . 5 . . . . Repair Stations 19 | . . . 4 . 10 5 . . . . . Recycling Units 12 | . 3 . 2 . . 7 . . . . . Scanalyzers 2 | . . . 2 . . . . . . . . Garrison Access 4 | . . . . . . . 4 . . . . Terminal Hacks 63 | . 13 . 2 6 3 8 2 1 . 28 . Record 11 | . . . . . . . . . . 11 . Part Schematic 9 | . . . . . . . . . . 9 . Robot Schematic 5 | . . . . . . . . . . 5 . Robot Analysis 18 | . 9 . 1 3 2 2 1 . . . . Prototype ID Bank 9 | . 1 . . 1 1 3 . . . 3 . Open Door 4 | . . . . 1 . 2 . 1 . . . Recycling Unit Index 1 | . . . . . . 1 . . . . . Unreport Threat 2 | . 1 . . . . . 1 . . . . Locate Traps 1 | . . . 1 . . . . . . . . Zone Layout 3 | . 2 . . 1 . . . . . . . Fabricator Hacks 3 | . . . . . . . 3 . . . . Network Status 2 | . . . . . . . 2 . . . . Build 1 | . . . . . . . 1 . . . . Repair Station Hacks 15 | . . . 4 . 7 4 . . . . . Scan Component 8 | . . . 2 . 4 2 . . . . . Repair 7 | . . . 2 . 3 2 . . . . . Recycling Unit Hacks 3 | . 1 . . . . 2 . . . . . Retrieve Components 3 | . 1 . . . . 2 . . . . . Scanalyzer 2 | . . . 2 . . . . . . . . Insert Component 1 | . . . 1 . . . . . . . . Analyze 1 | . . . 1 . . . . . . . . Garrison Access Hacks 1 | . . . . . . . 1 . . . . Seal Access 1 | . . . . . . . 1 . . . . Unauthorized Hacks 5 | . . . . . . 4 1 . . . . Terminals . | . . . . . . . . . . . . Fabricators 1 | . . . . . . . 1 . . . . Fabnet 1 | . . . . . . . 1 . . . . Repair Stations . | . . . . . . . . . . . . Recycling Units 4 | . . . . . . 4 . . . . . Reject 1 | . . . . . . 1 . . . . . Recyclers 1 | . . . . . . 1 . . . . . Mask 1 | . . . . . . 1 . . . . . Tunnel 1 | . . . . . . 1 . . . . . Scanalyzers . | . . . . . . . . . . . . Garrison Access . | . . . . . . . . . . . . Data Cores Recovered . | . . . . . . . . . . . . Used . | . . . . . . . . . . . . Hacking Detections 30 | . 8 . 4 1 4 7 6 . . . . Full Trace Events 6 | . 2 . . 1 . 2 1 . . . . Feedback Events . | . . . . . . . . . . . . Feedback Blocked . | . . . . . . . . . . . . Robot Schematics Acquired 5 | . . . . . . . . . . 5 . Robots Built . | . . . . . . . . . . . . Authchips . | . . . . . . . . . . . . Time 134 | . . . . . . . 134 . . . . Total Robot Build Rating . | . . . . . . . . . . . . Part Schematics Acquired 10 | . . . 1 . . . . . . 9 . Parts Built . | . . . . . . . . . . . . Authchips . | . . . . . . . . . . . . Time . | . . . . . . . . . . . . Total Part Build Rating . | . . . . . . . . . . . . Parts Repaired 7 | . . . 2 . 3 2 . . . . . Time 224 | . . . 52 . 96 76 . . . . . Parts Recycled . | . . . . . . . . . . . . Recycled Matter . | . . . . . . . . . . . . Retrieved Matter . | . . . . . . . . . . . . Retrieved Components 18 | . 10 . . . . 8 . . . . . Parts Scanalyzed 1 | . . . 1 . . . . . . . . Part Schematics Acquired 1 | . . . 1 . . . . . . . . Parts Damaged . | . . . . . . . . . . . . Bothacking | -11 -10 -10 -9 -9 -8 -8 -7 -7 -7 -7 -6 ------------ Run | Scr Mat Min Mat Min Mat Sto Fac Low Low Dat Pro Used RIF Installer . | . . . . . . . . . . . . Robots Hacked 1 | . . . . . . . . . . . 1 Non-combat . | . . . . . . . . . . . . Combat 1 | . . . . . . . . . . . 1 Robot Hacks Applied . | . . . . . . . . . . . . Relay Couplers Released 2 | . . . . . . . 2 . . . . Machine Destruction 2 | . . . . . . . 2 . . . . Fabnet Peak Effective % 3 | . . . . . . . . . . . 3 Autooverrided 1 | . . . . . . . . . . . 1 Robots Rewired . | . . . . . . . . . . . . Allies Hacked . | . . . . . . . . . . . . Hacks Repelled . | . . . . . . . . . . . . Allies | -11 -10 -10 -9 -9 -8 -8 -7 -7 -7 -7 -6 -------- Run | Scr Mat Min Mat Min Mat Sto Fac Low Low Dat Pro Total Allies 14 | . . . . 3 . 10 . . . . 1 Largest Group 10 | . . . . 2 . 10 6 . . . . Highest-Rated Group 173 | . . . . 41 . 173 96 . . . . Highest-Rated Ally 31 | . . . . 31 . 29 16 . . . . Total Orders 6 | . . . . . . 4 2 . . . . STAY 1 | . . . . . . 1 . . . . . FOLLOW 1 | . . . . . . 1 . . . . . EXPLORE 4 | . . . . . . 2 2 . . . . Ally Attacks 104 | . . . . 3 . 43 58 . . . . Total Damage 1151 | . . . . 44 . 436 671 . . . . Kills 14 | . . . . 1 . 6 7 . . . . Allies Corrupted . | . . . . . . . . . . . . Allies Melted . | . . . . . . . . . . . . Intel | -11 -10 -10 -9 -9 -8 -8 -7 -7 -7 -7 -6 ------- Run | Scr Mat Min Mat Min Mat Sto Fac Low Low Dat Pro Robot Analysis Total 146 | . 9 . 1 3 2 2 1 . . 128 . Derelict Logs Recovered 8 | . . 2 . 2 . . . 2 2 . . Drone Launches 19 | . . . . . . 16 3 . . . . Drone Recoveries 3 | . . . . . . 2 1 . . . . Exploration | -11 -10 -10 -9 -9 -8 -8 -7 -7 -7 -7 -6 ------------- Run | Scr Mat Min Mat Min Mat Sto Fac Low Low Dat Pro Turns Passed 12850 | 42 879 1323 1659 1689 963 1670 1964 993 811 206 651 Spaces Moved 5609 | 11 617 661 619 668 325 557 696 553 499 104 299 Core . | . . . . . . . . . . . . Treads 1470 | . . . . 1 231 557 681 . . . . Legs 250 | 11 239 . . . . . . . . . . Wheels 3889 | . 378 661 619 667 94 . 15 553 499 104 299 Hover . | . . . . . . . . . . . . Flight . | . . . . . . . . . . . . Fastest Speed 110 | 120 110 110 210 155 155 230 160 160 160 145 145 Average Speed 188 | 120 117 186 211 209 211 232 229 160 160 155 154 Slowest Speed 400 | 120 400 215 215 320 235 235 231 160 160 160 225 Overloaded Moves . | . . . . . . . . . . . . Propulsion Burnouts . | . . . . . . . . . . . . Robots Hopped . | . . . . . . . . . . . . Cave-ins Triggered . | . . . . . . . . . . . . Exploration Rate (%) 60 | 2 85 99 48 98 27 87 33 68 70 77 35 Regions Visited 11 Branch Regions 7 Pre-discovered Areas 27 | . . . . . . 1 . 1 . 25 . Known Exits Taken 5 | . . . . . 1 . 1 1 1 1 . Unknown Exits Taken 6 | 1 1 1 1 1 . 1 . . . . . Scrap Searched 9 | . . 2 . 3 . . . 2 2 . . Spaces Dug 68 | . . . 1 . . 51 9 4 2 . 1 Terrain Destroyed 414 | 4 2 . 2 8 6 64 152 12 4 39 121 Melee 1 | . . . 1 . . . . . . . . Projectile 75 | . . . 1 8 6 19 18 12 4 . 7 AOE 338 | 4 2 . . . . 45 134 . . 39 114 Terrain Rammed . | . . . . . . . . . . . . Walls Destroyed . | . . . . . . . . . . . . Machines Disabled . | . . . . . . . . . . . . Actions | -11 -10 -10 -9 -9 -8 -8 -7 -7 -7 -7 -6 --------- Run | Scr Mat Min Mat Min Mat Sto Fac Low Low Dat Pro Total 7137 | 21 720 708 852 898 518 826 935 621 505 132 401 Wait 714 | . 4 19 114 191 112 140 80 35 . 4 15 Move 5598 | 10 616 660 618 667 324 556 695 552 498 103 299 Hop . | . . . . . . . . . . . . Pick Up 88 | 1 28 2 16 . 8 14 10 3 1 3 2 Fast Attach 45 | 1 5 2 3 1 8 8 12 . . 2 3 Attach 27 | . 1 . 4 . . 2 4 1 1 5 9 Detach 12 | . 4 . 1 . 1 1 5 . . . . Swap 96 | . 8 2 14 4 10 8 24 4 . 4 18 Drop 112 | . 23 1 19 4 12 22 23 2 1 4 1 Fire 417 | 9 31 22 62 31 42 66 75 24 4 7 44 Melee 1 | . . . 1 . . . . . . . . Ram . | . . . . . . . . . . . . Kick . | . . . . . . . . . . . . Crush 10 | . . . . . 1 2 7 . . . . Escape Stasis . | . . . . . . . . . . . . Rewire 10 | . . . . . . . . . . . 10 Trap . | . . . . . . . . . . . . Miscellaneous 7 | . . . . . . 7 . . . . . Route ------- -11/Scrapyard -10/Materials (discovered 4 exits: *Mat x3 / [*Min]) -10/Mines (discovered 2 exits: *Mat x2) -9/Materials -9/Mines (discovered 2 exits: *Mat x2) -8/Materials -8/Storage (discovered 2 exits: *Fac / [*Rec]) -7/Factory (discovered 4 exits: *Fac x2 / *Low x2) -7/Lower Caves -7/Lower Caves (discovered 2 exits: *Fac / *Dat) -7/Data Miner -6/Proximity Caves History --------- Turn | Location | Event 10 | -11/Scrapyard | Discovered new exit (range 2) 43 | -11/Scrapyard | Entered Materials 116 | -10/Materials | Discovered new exit (range 9) 308 | -10/Materials | Discovered new exit (range 14) 312 | -10/Materials | Central database locked down 313 | -10/Materials | Build established: Mutant 541 | -10/Materials | Discovered new exit (range 6) 659 | -10/Materials | Discovered new exit (range 3) 922 | -10/Materials | Entered Mines 1031 | -10/Mines | Discovered new exit (range 6) 1078 | -10/Mines | Discovered new exit (range 9) 1153 | -10/Mines | Learned Materials terminal intel 1507 | -10/Mines | Build established: Scavenger-Mutant 1520 | -10/Mines | Destroyed YI-UF0 1802 | -10/Mines | Learned Materials garrison access intel 2245 | -10/Mines | Entered Materials 2245 | -9/Materials | Evolved 2 slots: Propulsion x1, Utility x1 2246 | -9/Materials | Loaded intel: 12 terminal locations 2709 | -9/Materials | Build established: Mutant 2887 | -9/Materials | Discovered new exit (range 15) 3630 | -9/Materials | Repaired Huge Storage Unit 3657 | -9/Materials | Repaired Huge Storage Unit 3904 | -9/Materials | Entered Mines 4068 | -9/Mines | Deemed a non-threat by the Exiles lab entrance 4255 | -9/Mines | Learned location of 1 exit from Lower Caves 4306 | -9/Mines | Met a Derelict who couldn't figure out how to use a Trap Extractor 4719 | -9/Mines | Discovered new exit (range 11) 4719 | -9/Mines | Discovered new exit (range 15) 5050 | -9/Mines | Received a Mining Laser from a helpful Derelict 5593 | -9/Mines | Entered Materials 5593 | -8/Materials | Evolved 2 slots: Utility x2 5594 | -8/Materials | Identified exit to Storage 5595 | -8/Materials | Loaded intel: 1 garrison access location 5644 | -8/Materials | Repaired Hrd. Light Armor Plating 5683 | -8/Materials | Repaired Deuterium Engine 5711 | -8/Materials | Repaired Lgt. Treads 6556 | -8/Materials | Entered Storage 7431 | -8/Storage | Discovered new exit (range 27) 7505 | -8/Storage | Assisted by bots powering up and referring to "LRC-V3" 7710 | -8/Storage | Repaired Adv. Treads 7749 | -8/Storage | Repaired Hrd. Medium Armor Plating 7813 | -8/Storage | Build established: Commander-Mutant 7842 | -8/Storage | Used back door to open Recycling access 7842 | -8/Storage | Discovered new exit (range 5) 8226 | -8/Storage | Entered Factory 8226 | -7/Factory | Accompanied by 6 allies 8226 | -7/Factory | Evolved 2 slots: Propulsion x1, Utility x1 8289 | -7/Factory | Discovered new exit (range 69) 8423 | -7/Factory | Garrison activated, responded to threat 8542 | -7/Factory | Discovered new exit (range 36) 8552 | -7/Factory | Discovered new exit (range 40) 8588 | -7/Factory | Discovered new exit (range 72) 8820 | -7/Factory | Build established: Mutant 9156 | -7/Factory | Build established: Skirmisher 9743 | -7/Factory | Cargo convoy interrupted 9777 | -7/Factory | Destroyed 11 combat bots 9922 | -7/Factory | Build established: Mutant 10189 | -7/Factory | Identified exit to Lower Caves 10190 | -7/Factory | Entered Lower Caves 10191 | -7/Lower Caves | Identified exit to Lower Caves 10366 | -7/Lower Caves | Spotted B-75 Beast 10377 | -7/Lower Caves | Learned 8 Factory zone layouts 10428 | -7/Lower Caves | Ambushed by wild Derelicts 10791 | -7/Lower Caves | Build established: Skirmisher 10797 | -7/Lower Caves | Learned location of Zion (-6) 11180 | -7/Lower Caves | Attracted the attention of an 0b10 outpost 11183 | -7/Lower Caves | Entered another Lower Caves area 11301 | -7/Lower Caves | Discovered new exit (range 8) 11325 | -7/Lower Caves | Identified exit to Factory 11513 | -7/Lower Caves | Build established: Mutant 11626 | -7/Lower Caves | Encountered a Warlord checkpoint 11650 | -7/Lower Caves | Learned Factory non-interactive machine intel 11960 | -7/Lower Caves | Discovered new exit (range 15) 11986 | -7/Lower Caves | Learned Factory machine intel 11992 | -7/Lower Caves | Identified exit to Data Miner 11994 | -7/Lower Caves | Entered Data Miner 11994 | -7/Data Miner | Discovered new exit (range 6) 12001 | -7/Data Miner | Identified exit to Proximity Caves 12025 | -7/Data Miner | Met Data Miner 12052 | -7/Data Miner | Learned location of Section 7 (-3) 12052 | -7/Data Miner | Acquired the access code to Warlord's prototype stash 12078 | -7/Data Miner | Received God Mode back door access code from Data Miner 12102 | -7/Data Miner | Destroyed Data Miner 12104 | -7/Data Miner | Interfaced with the Data Conduit 12162 | -7/Data Miner | Lost 3 parts (2u1w) 12200 | -7/Data Miner | Entered Proximity Caves 12661 | -6/Proximity Caves | Lost 5 parts (1p3u1w) 12731 | -6/Proximity Caves | Attracted the attention of an 0b10 outpost 12733 | -6/Proximity Caves | Core integrity fell below 50% 12783 | -6/Proximity Caves | Core integrity fell below 20% 12813 | -6/Proximity Caves | Lost 5 parts (2n2u1w) 12851 | -6/Proximity Caves | Destroyed by L-41 Fighter with Axe Last Messages --------------- 12795_ Acquired 14 matter. 12800_ Acquired 50 matter. 12813_ The unstable cave ceiling collapses. 12816_ Acquired 1 matter. 12818_ Acquired 26 matter. 12820_ Acquired 3 matter. 12824_ C-30 ARC bursts open, deploying its payload. 12824_ G-67 Veteran unfolds itself. 12824_ B-48 Gladiator unfolds itself. 12824_ L-41 Fighter unfolds itself. 12824_ E-15 Imp unfolds itself. 12824_ E-15 Imp destroyed. 12831_ Attempting to rewire Y-54 Guardian. 12838_ System corrupted: Energy discharge (-125). 12838_ Attempting to rewire Y-54 Guardian. 12839_ Segregator fries itself beyond repair. 12839_ Attempting to rewire Y-54 Guardian. 12841_ Cesium-ion Thruster fries itself beyond repair. 12844_ Acquired Imp. Light Armor Plating. 12850_ L-41 Fighter knocked back. Map ----- +----------------------------------------------------+ | ???????????????????????????###???#### ###????? | | ???????????????????????????? #?#### ###????? | | ???????????????????????????# #### #????? | | ???????????????????????????## ##" ?????? | | ???????????????????????????## ## ????? | | ???????????????????????????##"# ???????? | | ???????????????????????????##" ##?????????? | | ???????????????????????????## " ###?????????? | | ???????????????????????????## *%" ##??????????? | | ???????????????????????????## =%!########???????? | | ???????????????????????????## /= ######### ?????? | | ???????????????????????????## # # # # ????? | | ???????????????????????????# ???? | | ??????????????????????????## ???? | | ??????????????????????????## ???? | | ??????????????????????????## % #???? | | ??????????????????????????## #???? | | ??????????????????????????## # ???? | | ???????????????????????###### # ## # ????? | | ???????????????????????###### % # # # ?????? | | ???????????????????????## ####?????? | | ???????????????????????## ###g# #####?????? | | ??????????????????????### #gY " #????????? | | ??????????????????????### # ##????????? | | ?????????????????####?##; lb # ##????????? | | ????????????????#########@#%* #+## ###????????? | | ????????????????### ##### #/ # ###???????? | | ????????????????## ### #"""# ##???????? | | ????????????????## ###### ???????? | | ????????????????### ## ???????? | | ??????????????? ### #### ????????? | | ?????????? ### ###?????????????? | | ?????????? ###?????????????? | | ?????????? ## ##?????????????? | | ##???????????### ## ### ##?????????????? | | ###???????????## ### ##### ##?????????????? | | ##?????????## ?############# ##??####???????? | | ####??????## ???############ ########???????? | | ####??????## ?????????????## ##### ####?????? | | ##??????###?????????????### #### ##### ??? | | ##??????????????????????### ##### # #### ?? | | " ##??????????????????????## ## ## ?? | | "" ##??????????????????????### # ##?? | | "" ###?#########???????????### ## ##?? | | " ##############???????????## ## ###?? | | #### ####???????##### ###?? | | " ### ## ###???????##### ##?? | | " ## ### ###??###### ####?? | | ### ########### ## ] ### ?? | | # ### ###### #### ### ##???? | +----------------------------------------------------+ Best States ------------- Heat Dissipation 75 Energy Generation 19 Energy Capacity 500 Matter Stores 300 Matter Capacity 300 Sight Range 16 Robot Scan Range 15 Terrain Scan Range 16 Terrain Scan Density 10 Armor Coverage 750 Evasion (%) 55 Recoil Reduction 4 Matter Filtering 50 Item Schematics ----------------- Huge Storage Unit | -9/Materials | Scanalyzed Combat Drone Bay | -7/Data Miner | Free Lgt. Regenerative Plating | -7/Data Miner | Free Biomechanical Wings | -7/Data Miner | Free Gravity Neutralizer | -7/Data Miner | Free Gui. EMP Blaster | -7/Data Miner | Free Hvy. Treads | -7/Data Miner | Free Adv. System Restoration Module | -7/Data Miner | Free Hvy. Shock Bomb Launcher | -7/Data Miner | Free Hvy. Phase Cannon | -7/Data Miner | Free Robot Schematics ------------------ W-25 Informer | -7/Data Miner | Free B-48 Gladiator | -7/Data Miner | Free G-47 Trooper | -7/Data Miner | Free E-15 Imp | -7/Data Miner | Free H-66 Slayer | -7/Data Miner | Free Fabricated ------------ Nothing Alien Tech Used ----------------- None Achievements -------------- None Challenges ------------ None Game ------ Seed MinesnifferGrenadeCharger Manual? 0 Play Time 01:49:05 Cumulative 742.5 hours Start 2022.06.23 @ 03:03:34 End 2022.06.23 @ 05:07:59 Sessions 5 Manual Loads 0 Difficulty Rogue Special Mode None Game No. 181 Rogue 149 Adventurer 31 Explorer 1 Win Type - Total 37 Types 27/0/5/4/0/0/1/0/0 Lore% 84 Gallery% 86 Achievement% 73 Wizard Run 0 Options --------- ASCII 0 Keyboard 0 Movement Arrows Keybinds 0 Fullscreen 1 Font 20/Terminus Map View 66x50 Tactical HUD 1 Map Filters NONE Filters NONE Steam 1 RUN: 710e9e2e-3f3d-46d4-a91b-0a8de161dc7a